[Event "Turkish Club Cup 2019"]
[Site "Konya"]
[Date "2019.07.18"]
[Round "5"]
[White "Kucuk, Aybike"]
[Black "Gul, Zeynep"]
[Result "1/2-1/2"]
[ECO "B01"]
[WhiteElo "1266"]
[BlackElo "1359"]
[Annotator "NA"]
[PlyCount "73"]
[EventDate "2019.07.16"]
[EventType "team-tourn"]
[EventCountry "TUR"]
[SourceTitle "playchess.com"]
[Source "ChessBase"]
[SourceQuality "1"]
[TimeControl "5400+30"]

1. e4 {[%emt 0:00:30]} d5 {[%emt 0:00:30]} 2. exd5 {[%emt 0:00:00]} Qxd5 {[%emt 0:00:30]} 3. Nc3 {[%emt 0:00:00]} Qd8 {[%emt 0:00:00]} 4. d4 {[%emt 0:00:30]} Nf6 {[%emt 0:00:00]} 5. Nf3 {[%emt 0:00:30]} Bg4 {[%emt 0:00:00]} 6. Be2 {[%emt 0:00:00]} e6 {[%emt 0:00:00]} 7. O-O {[%emt 0:00:00]} Be7 {[%emt 0:00:30]} 8. Bf4 {[%emt 0:00:30]} O-O {[%emt 0:00:30]} 9. h3 {[%emt 0:03:30]} Bxf3 {[%emt 0:00:30]} 10. Bxf3 {[%emt 0:00:30]} c6 {[%emt 0:00:30]} 11. Re1 {[%emt 0:02:30]} Nbd7 {[%emt 0:01:30]} 12. Ne4 {[%emt 0:03:30]} Nxe4 {[%emt 0:01:30]} 13. Bxe4 {[%emt 0:00:00]} Nf6 {[%emt 0:00:30]} 14. Bd3 {[%emt 0:00:00]} Bd6 {[%emt 0:01:30]} 15. Bd2 {[%emt 0:00:30]} Qc7 {[%emt 0:03:30]} 16. Qf3 {[%emt 0:03:30]} Rfd8 {[%emt 0:05:30]} 17. c3 {[%emt 0:01:30]} Rd7 {[%emt 0:06:30]} 18. Bg5 {[%emt 0:03:30]} Be7 {[%emt 0:00:30]} 19. Re5 {[%emt 0:06:30]} Rd5 {[%emt 0:02:30]} 20. Rxd5 {[%emt 0:03:30]} Nxd5 {[%emt 0:01:30]} 21. Bd2 {[%emt 0:00:30]} Bd6 {[%emt 0:04:30]} 22. Re1 {[%emt 0:01:30]} Qe7 {[%emt 0:13:30]} 23. Qe4 {[%emt 0:07:30]} Nf6 {[%emt 0:01:30]} 24. Qh4 {[%emt 0:00:30]} Qd8 {[%emt 0:22:30]} 25. Bg5 {[%emt 0:02:30]} h6 {[%emt 0:00:30]} 26. Bd2 {[%emt 0:01:30]} Be7 {[%emt 0:02:30]} 27. Qg3 {[%emt 0:02:30]} Kf8 {[%emt 0:02:30]} 28. Qf3 {[%emt 0:07:30]} Qd5 {[%emt 0:04:30]} 29. Qxd5 {[%emt 0:01:30]} Nxd5 {[%emt 0:01:30]} 30. a3 {[%emt 0:02:30]} Rd8 {[%emt 0:03:30]} 31. Re4 {[%emt 0:04:30]} Bf6 {[%emt 0:01:05]} 32. Kf1 {[%emt 0:03:30]} Nb6 {[%emt 0:02:08]} 33. Ke2 {[%emt 0:04:30]} Na4 {[%emt 0:01:35]} 34. Bc1 {[%emt 0:01:30]} Nb6 {[%emt 0:00:17]} 35. Bd2 {[%emt 0:01:30]} Nd5 {[%emt 0:01:18]} 36. Kd1 {[%emt 0:00:30]} Nb6 {[%emt 0:01:17]} 37. Kc2 {[%emt 0:01:30]} 1/2-1/2

[Event "Turkish Club Cup 2019"]
[Site "Konya"]
[Date "2019.07.18"]
[Round "5"]
[White "Sarac, Ayca"]
[Black "Alev, Gonulden Seda"]
[Result "0-1"]
[ECO "D36"]
[WhiteElo "1142"]
[BlackElo "1579"]
[Annotator "NA"]
[PlyCount "70"]
[EventDate "2019.07.16"]
[EventType "team-tourn"]
[EventCountry "TUR"]
[SourceTitle "playchess.com"]
[Source "ChessBase"]
[SourceQuality "1"]
[TimeControl "5400+30"]

1. d4 {[%emt 0:00:30]} Nf6 {[%emt 0:00:30]} 2. c4 {[%emt 0:00:00]} e6 {[%emt 0:00:00]} 3. Nc3 {[%emt 0:00:00]} d5 {[%emt 0:01:00]} 4. cxd5 {[%emt 0:00:30]} exd5 {[%emt 0:02:30]} 5. Bg5 {[%emt 0:00:30]} c6 {[%emt 0:02:30]} 6. Qc2 {[%emt 0:00:30]} g6 {[%emt 0:14:30]} 7. e3 {[%emt 0:00:30]} h6 {[%emt 0:02:30]} 8. Bh4 {[%emt 0:04:30]} Bf5 {[%emt 0:09:30]} 9. Bd3 {[%emt 0:03:30]} Bxd3 {[%emt 0:01:30]} 10. Qxd3 {[%emt 0:00:30]} Nbd7 {[%emt 0:00:30]} 11. Nf3 {[%emt 0:04:30]} Bd6 {[%emt 0:03:30]} 12. Bg3 {[%emt 0:07:30]} Qc7 {[%emt 0:10:30]} 13. Bxd6 {[%emt 0:05:30]} Qxd6 {[%emt 0:04:30]} 14. h3 {[%emt 0:04:30]} O-O-O {[%emt 0:04:30]} 15. Rc1 {[%emt 0:06:30]} Kb8 {[%emt 0:00:30]} 16. O-O {[%emt 0:00:30]} Rde8 {[%emt 0:03:30]} 17. Qc2 {[%emt 0:09:30]} Ne4 {[%emt 0:05:30]} 18. a4 {[%emt 0:09:30]} g5 {[%emt 0:01:30]} 19. a5 {[%emt 0:02:30]} f5 {[%emt 0:06:30]} 20. Na4 {[%emt 0:04:30]} h5 {[%emt 0:09:23]} 21. Nc5 {[%emt 0:05:30]} Ndxc5 {[%emt 0:01:33]} 22. dxc5 {[%emt 0:00:30]} Qc7 {[%emt 0:00:49]} 23. Nd4 {[%emt 0:04:30]} Qd7 {[%emt 0:03:06]} 24. f3 {[%emt 0:01:30]} Ng3 {[%emt 0:01:53]} 25. Rfe1 {[%emt 0:00:30]} h4 {[%emt 0:00:32]} 26. Qa4 {[%emt 0:05:44]} a6 {[%emt 0:04:25]} 27. Rc2 {[%emt 0:01:45]} g4 {[%emt 0:01:17]} 28. fxg4 {[%emt 0:00:23]} fxg4 {[%emt 0:00:34]} 29. hxg4 {[%emt 0:00:39]} Re4 {[%emt 0:01:37]} 30. Rf2 {[%emt 0:02:30]} Rxg4 {[%emt 0:01:37]} 31. Qd1 {[%emt 0:02:33]} h3 {[%emt 0:00:43]} 32. Nf3 {[%emt 0:01:52]} hxg2 {[%emt 0:00:51]} 33. Rxg2 {[%emt 0:00:07]} Rh1+ {[%emt 0:01:21]} 34. Kf2 {[%emt 0:00:04]} Ne4+ {[%emt 0:00:00]} 35. Ke2 {[%emt 0:01:37]} Rxg2+ {[%emt 0:00:00]} 0-1

[Event "Turkish Club Cup 2019"]
[Site "Konya"]
[Date "2019.07.19"]
[Round "6"]
[White "Dogan, Ali Ekber"]
[Black "Mecit, Emre"]
[Result "1/2-1/2"]
[ECO "A58"]
[WhiteElo "2200"]
[BlackElo "2065"]
[Annotator "NA"]
[PlyCount "31"]
[EventDate "2019.07.16"]
[EventType "team-tourn"]
[EventCountry "TUR"]
[SourceTitle "playchess.com"]
[Source "ChessBase"]
[SourceQuality "1"]
[TimeControl "5400+30"]

1. d4 {[%emt 0:00:30]} Nf6 {[%emt 0:00:30]} 2. c4 {[%emt 0:00:30]} c5 {[%emt 0:00:30]} 3. d5 {[%emt 0:00:00]} b5 {[%emt 0:00:00]} 4. cxb5 {[%emt 0:00:00]} a6 {[%emt 0:00:00]} 5. bxa6 {[%emt 0:00:30]} g6 {[%emt 0:00:00]} 6. g3 {[%emt 0:00:00]} d6 {[%emt 0:00:00]} 7. Bg2 {[%emt 0:00:00]} Bg7 {[%emt 0:00:00]} 8. Nc3 {[%emt 0:01:30]} O-O {[%emt 0:00:00]} 9. Nf3 {[%emt 0:01:30]} Nfd7 {[%emt 0:05:30]} 10. O-O {[%emt 0:01:30]} Nb6 $14 {[%emt 0:03:30]} 11. Bd2 {[%emt 0:15:30]} Nc4 {[%emt 0:08:30]} 12. Be1 {[%emt 0:11:30]} Nxa6 {[%emt 0:06:30]} 13. Qb3 {[%emt 0:09:30]} Na5 {[%emt 0:02:30]} 14. Qd1 {[%emt 0:02:30]} Nc4 {[%emt 0:01:30]} 15. Qb3 {[%emt 0:01:30]} Na5 {[%emt 0:00:30]} 16. Qd1 {[%emt 0:03:30]} 1/2-1/2

[Event "Turkish Club Cup 2019"]
[Site "Konya"]
[Date "2019.07.19"]
[Round "6"]
[White "Gokcek, Kursat Bugra"]
[Black "Guven, Oguz Kagan"]
[Result "1/2-1/2"]
[ECO "D02"]
[WhiteElo "2150"]
[BlackElo "2142"]
[Annotator "NA"]
[PlyCount "62"]
[EventDate "2019.07.16"]
[EventType "team-tourn"]
[EventCountry "TUR"]
[SourceTitle "playchess.com"]
[Source "ChessBase"]
[SourceQuality "1"]
[TimeControl "5400+30"]

1. d4 {[%emt 0:00:30]} Nf6 {[%emt 0:00:30]} 2. Bf4 {[%emt 0:00:30]} d5 {[%emt 0:00:30]} 3. e3 {[%emt 0:00:00]} g6 {[%emt 0:00:00]} 4. Nd2 {[%emt 0:06:00]} Bg7 {[%emt 0:00:00]} 5. Ngf3 {[%emt 0:01:30]} O-O {[%emt 0:00:00]} 6. Be2 {[%emt 0:00:30]} c5 {[%emt 0:00:00]} 7. c3 {[%emt 0:00:30]} Nc6 {[%emt 0:00:00]} 8. Ne5 {[%emt 0:01:30]} Nd7 {[%emt 0:05:00]} 9. Nxc6 {[%emt 0:13:30]} bxc6 {[%emt 0:00:30]} 10. O-O {[%emt 0:03:30]} cxd4 {[%emt 0:04:30]} 11. exd4 {[%emt 0:01:30]} e5 {[%emt 0:05:30]} 12. dxe5 {[%emt 0:02:30]} Nxe5 {[%emt 0:00:30]} 13. Nf3 {[%emt 0:10:30]} Nxf3+ {[%emt 0:07:30]} 14. Bxf3 {[%emt 0:01:30]} Qb6 {[%emt 0:02:30]} 15. Qd2 {[%emt 0:01:30]} a5 {[%emt 0:08:30]} 16. Rfe1 {[%emt 0:14:30]} Be6 {[%emt 0:03:30]} 17. h4 {[%emt 0:08:30]} Rfd8 {[%emt 0:08:30]} 18. Be5 {[%emt 0:04:30]} d4 {[%emt 0:15:30]} 19. Bxg7 {[%emt 0:06:30]} Kxg7 {[%emt 0:00:30]} 20. h5 {[%emt 0:00:00]} Qc5 {[%emt 0:02:30]} 21. cxd4 {[%emt 0:09:49]} Rxd4 {[%emt 0:03:30]} 22. Qe3 {[%emt 0:00:15]} Rc4 {[%emt 0:00:30]} 23. Qxc5 {[%emt 0:00:50]} Rxc5 {[%emt 0:00:00]} 24. hxg6 {[%emt 0:00:01]} hxg6 {[%emt 0:00:00]} 25. Rec1 {[%emt 0:01:21]} Rxc1+ {[%emt 0:01:30]} 26. Rxc1 {[%emt 0:00:04]} Bxa2 {[%emt 0:00:30]} 27. Rxc6 {[%emt 0:04:18]} Rb8 {[%emt 0:00:30]} 28. Ra6 {[%emt 0:00:10]} Rb5 {[%emt 0:01:30]} 29. b4 {[%emt 0:00:36]} Rxb4 {[%emt 0:00:30]} 30. Rxa5 {[%emt 0:00:30]} Be6 {[%emt 0:00:00]} 31. Ra7 {[%emt 0:00:00]} Rd4 {[%emt 0:22:21]} 1/2-1/2

[Event "Turkish Club Cup 2019"]
[Site "Konya"]
[Date "2019.07.19"]
[Round "6"]
[White "Gulden, Egemen"]
[Black "Subasi, Cagrican"]
[Result "0-1"]
[ECO "C06"]
[WhiteElo "2135"]
[BlackElo "1871"]
[Annotator "NA"]
[PlyCount "110"]
[EventDate "2019.07.16"]
[EventType "team-tourn"]
[EventCountry "TUR"]
[SourceTitle "playchess.com"]
[Source "ChessBase"]
[SourceQuality "1"]
[TimeControl "5400+30"]

1. e4 {[%emt 0:00:30]} e6 {[%emt 0:00:30]} 2. d4 {[%emt 0:00:30]} d5 {[%emt 0:00:00]} 3. Nd2 {[%emt 0:00:30]} Nf6 {[%emt 0:00:00]} 4. e5 {[%emt 0:02:30]} Nfd7 {[%emt 0:00:00]} 5. Bd3 {[%emt 0:00:30]} c5 {[%emt 0:00:00]} 6. c3 {[%emt 0:00:00]} Nc6 {[%emt 0:00:30]} 7. Ne2 {[%emt 0:00:00]} cxd4 {[%emt 0:00:30]} 8. cxd4 {[%emt 0:00:00]} f6 {[%emt 0:00:00]} 9. exf6 {[%emt 0:02:00]} Nxf6 {[%emt 0:00:00]} 10. O-O {[%emt 0:03:30]} Bd6 {[%emt 0:00:00]} 11. f4 {[%emt 0:06:30]} Qb6 {[%emt 0:05:00]} 12. Nf3 {[%emt 0:16:30]} O-O {[%emt 0:00:00]} 13. Kh1 {[%emt 0:00:30]} Bd7 {[%emt 0:01:00]} 14. Ne5 {[%emt 0:14:30]} Bxe5 {[%emt 0:09:30]} 15. fxe5 {[%emt 0:25:30]} Ne4 {[%emt 0:03:30]} 16. Bf4 {[%emt 0:02:30]} Nb4 {[%emt 0:03:30]} 17. Bxe4 {[%emt 0:14:29]} dxe4 {[%emt 0:00:30]} 18. b3 {[%emt 0:00:00]} Bb5 {[%emt 0:00:30]} 19. a4 {[%emt 0:05:32]} Bd3 {[%emt 0:01:30]} 20. Qd2 {[%emt 0:01:02]} Nd5 {[%emt 0:00:30]} 21. Bg3 {[%emt 0:01:47]} Qxb3 {[%emt 0:11:30]} 22. Kg1 {[%emt 0:01:12]} Rxf1+ {[%emt 0:00:30]} 23. Rxf1 {[%emt 0:00:30]} Qxa4 {[%emt 0:00:30]} 24. Re1 {[%emt 0:00:08]} Rc8 {[%emt 0:05:30]} 25. Nc1 {[%emt 0:00:58]} Rc2 {[%emt 0:02:30]} 26. Qg5 {[%emt 0:00:38]} Qxd4+ {[%emt 0:00:30]} 27. Kh1 {[%emt 0:00:00]} Rc8 {[%emt 0:00:30]} 28. h4 {[%emt 0:00:21]} e3 {[%emt 0:01:30]} 29. h5 {[%emt 0:00:24]} h6 {[%emt 0:00:30]} 30. Nb3 {[%emt 0:01:11]} Qc4 {[%emt 0:00:30]} 31. Qh4 {[%emt 0:00:00]} Qxh4+ {[%emt 0:00:30]} 32. Bxh4 {[%emt 0:00:19]} Rc4 {[%emt 0:00:30]} 33. Bg3 {[%emt 0:00:30]} b6 {[%emt 0:00:30]} 34. Nc1 {[%emt 0:00:30]} Be4 {[%emt 0:00:30]} 35. Ne2 {[%emt 0:00:30]} Rc2 {[%emt 0:00:30]} 36. Kh2 {[%emt 0:00:30]} a5 {[%emt 0:00:30]} 37. Nd4 {[%emt 0:00:30]} Rxg2+ {[%emt 0:00:30]} 38. Kh3 {[%emt 0:00:30]} Rd2 {[%emt 0:00:30]} 39. Nb5 {[%emt 0:00:30]} Bf5+ {[%emt 0:00:30]} 40. Kh4 {[%emt 0:00:30]} Rb2 {[%emt 0:00:30]} 41. Nd6 {[%emt 0:00:30]} Rb4+ {[%emt 0:00:30]} 42. Bf4 {[%emt 0:00:30]} Nxf4 {[%emt 0:00:30]} 43. Kg3 {[%emt 0:00:30]} Nxh5+ {[%emt 0:00:30]} 44. Kf3 {[%emt 0:00:00]} a4 {[%emt 0:07:30]} 45. Rc1 {[%emt 0:00:00]} a3 {[%emt 0:00:30]} 46. Rc8+ {[%emt 0:00:53]} Kh7 {[%emt 0:00:30]} 47. Ra8 {[%emt 0:00:04]} Rb3 {[%emt 0:01:30]} 48. Nf7 {[%emt 0:01:59]} Kg6 {[%emt 0:00:30]} 49. Nh8+ {[%emt 0:00:05]} Kg5 {[%emt 0:00:30]} 50. Nf7+ {[%emt 0:00:03]} Kh4 {[%emt 0:01:30]} 51. Ra4+ {[%emt 0:00:30]} Kh3 {[%emt 0:00:00]} 52. Nd6 {[%emt 0:00:49]} b5 {[%emt 0:00:00]} 53. Rd4 {[%emt 0:01:09]} a2 {[%emt 0:00:30]} 54. Rd1 {[%emt 0:01:10]} e2+ {[%emt 0:00:30]} 55. Kxe2 {[%emt 0:00:00]} Bg4+ {[%emt 0:00:30]} 0-1

[Event "Turkish Club Cup 2019"]
[Site "Konya"]
[Date "2019.07.19"]
[Round "6"]
[White "Kucuk, Dogan"]
[Black "Karahan, Anil"]
[Result "1-0"]
[ECO "C00"]
[WhiteElo "2028"]
[BlackElo "1889"]
[Annotator "NA"]
[PlyCount "77"]
[EventDate "2019.07.16"]
[EventType "team-tourn"]
[EventCountry "TUR"]
[SourceTitle "playchess.com"]
[Source "ChessBase"]
[SourceQuality "1"]
[TimeControl "5400+30"]

1. e4 {[%emt 0:00:30]} e6 {[%emt 0:00:30]} 2. d3 {[%emt 0:00:30]} d5 {[%emt 0:00:30]} 3. Nd2 {[%emt 0:00:00]} Nc6 {[%emt 0:06:30]} 4. Ngf3 {[%emt 0:01:00]} e5 {[%emt 0:00:30]} 5. Be2 {[%emt 0:02:30]} Nf6 {[%emt 0:00:30]} 6. O-O {[%emt 0:00:00]} Bc5 {[%emt 0:00:30]} 7. c3 {[%emt 0:06:00]} a5 {[%emt 0:12:30]} 8. Qc2 {[%emt 0:07:30]} O-O {[%emt 0:01:30]} 9. h3 {[%emt 0:00:30]} Ba7 {[%emt 0:24:30]} 10. Re1 {[%emt 0:02:30]} Nh5 {[%emt 0:14:30]} 11. exd5 {[%emt 0:04:30]} Qxd5 {[%emt 0:02:30]} 12. Nf1 {[%emt 0:00:30]} Nf4 {[%emt 0:02:30]} 13. Bxf4 {[%emt 0:06:30]} exf4 {[%emt 0:00:30]} 14. d4 {[%emt 0:01:30]} Bd7 {[%emt 0:07:30]} 15. Bd3 {[%emt 0:04:30]} g6 {[%emt 0:00:00]} 16. N1d2 {[%emt 0:02:30]} Rae8 {[%emt 0:02:00]} 17. Qb3 {[%emt 0:07:30]} Rxe1+ {[%emt 0:09:18]} 18. Rxe1 {[%emt 0:00:30]} Qxb3 {[%emt 0:02:20]} 19. axb3 {[%emt 0:00:30]} Re8 {[%emt 0:01:48]} 20. Ra1 {[%emt 0:04:30]} b6 {[%emt 0:01:36]} 21. Bb5 {[%emt 0:08:30]} Bb8 {[%emt 0:02:24]} 22. c4 {[%emt 0:01:30]} Rd8 {[%emt 0:03:21]} 23. Re1 {[%emt 0:04:30]} Kf8 {[%emt 0:02:36]} 24. Ne4 {[%emt 0:01:30]} Kg7 {[%emt 0:00:25]} 25. Nc3 {[%emt 0:04:30]} Kf8 {[%emt 0:00:30]} 26. Nd5 {[%emt 0:00:30]} Nb4 {[%emt 0:00:59]} 27. Bxd7 {[%emt 0:01:30]} Nxd5 {[%emt 0:00:19]} 28. Bb5 {[%emt 0:00:30]} Nb4 {[%emt 0:00:40]} 29. d5 {[%emt 0:00:30]} c6 {[%emt 0:00:34]} 30. Bxc6 {[%emt 0:01:30]} Nxc6 {[%emt 0:00:30]} 31. dxc6 {[%emt 0:00:00]} Bc7 {[%emt 0:00:29]} 32. Re4 {[%emt 0:00:00]} f6 {[%emt 0:00:28]} 33. Nd4 {[%emt 0:00:30]} Kf7 {[%emt 0:00:17]} 34. Nb5 {[%emt 0:02:30]} f5 {[%emt 0:00:48]} 35. Re1 {[%emt 0:02:30]} Rc8 {[%emt 0:00:27]} 36. Rd1 {[%emt 0:00:00]} Ke6 {[%emt 0:00:31]} 37. Rd7 {[%emt 0:02:00]} Be5 {[%emt 0:00:51]} 38. Na7 {[%emt 0:00:30]} Rh8 {[%emt 0:00:16]} 39. Rb7 {[%emt 0:00:00]} 1-0

[Event "Turkish Club Cup 2019"]
[Site "Konya"]
[Date "2019.07.19"]
[Round "6"]
[White "Taskaya, Muhammed"]
[Black "Gulsoy, Mustafa Alpago"]
[Result "0-1"]
[ECO "B07"]
[WhiteElo "2011"]
[BlackElo "2069"]
[Annotator "NA"]
[PlyCount "62"]
[EventDate "2019.07.16"]
[EventType "team-tourn"]
[EventCountry "TUR"]
[SourceTitle "playchess.com"]
[Source "ChessBase"]
[SourceQuality "1"]
[TimeControl "5400+30"]

1. e4 {[%emt 0:00:30]} d6 {[%emt 0:00:30]} 2. d4 {[%emt 0:00:00]} Nf6 {[%emt 0:00:30]} 3. Nc3 {[%emt 0:00:00]} e5 {[%emt 0:00:30]} 4. Nge2 {[%emt 0:01:30]} Be7 {[%emt 0:02:30]} 5. h3 {[%emt 0:02:30]} c6 {[%emt 0:03:30]} 6. g4 {[%emt 0:01:30]} b5 {[%emt 0:03:30]} 7. Ng3 $14 {[%emt 0:03:30]} h5 {[%emt 0:23:30]} 8. g5 {[%emt 0:06:30]} Nh7 {[%emt 0:03:30]} 9. h4 {[%emt 0:18:30]} g6 {[%emt 0:00:30]} 10. f4 {[%emt 0:03:30]} exf4 {[%emt 0:00:30]} 11. Bxf4 {[%emt 0:00:30]} O-O {[%emt 0:00:30]} 12. Nxh5 {[%emt 0:11:30]} b4 {[%emt 0:05:30]} 13. Na4 {[%emt 0:02:30]} gxh5 {[%emt 0:02:30]} 14. Qxh5 {[%emt 0:00:00]} Qa5 {[%emt 0:14:30]} 15. Rg1 {[%emt 0:13:00]} Kh8 {[%emt 0:09:30]} 16. e5 {[%emt 0:07:30]} Bf5 {[%emt 0:02:30]} 17. exd6 {[%emt 0:00:30]} Bg6 {[%emt 0:04:30]} 18. Qe2 {[%emt 0:13:35]} Bf6 {[%emt 0:07:59]} 19. gxf6 {[%emt 0:01:46]} Nd7 {[%emt 0:00:02]} 20. h5 {[%emt 0:08:31]} Rae8 {[%emt 0:01:00]} 21. Be3 {[%emt 0:00:37]} Bxh5 {[%emt 0:00:19]} 22. Qd2 {[%emt 0:00:38]} Ndxf6 {[%emt 0:00:48]} 23. d7 {[%emt 0:01:56]} Nxd7 {[%emt 0:00:28]} 24. Bd3 {[%emt 0:00:55]} f5 {[%emt 0:03:34]} 25. Kf2 {[%emt 0:00:29]} Qxa4 {[%emt 0:01:23]} 26. Bf4 {[%emt 0:00:01]} Qa5 {[%emt 0:03:25]} 27. Bc4 {[%emt 0:01:00]} Nb6 {[%emt 0:03:11]} 28. Bd3 {[%emt 0:00:01]} Qd5 {[%emt 0:00:34]} 29. Rg3 {[%emt 0:01:04]} Qxd4+ {[%emt 0:00:30]} 30. Kg2 {[%emt 0:00:00]} Nd5 {[%emt 0:00:16]} 31. Bh6 {[%emt 0:00:00]} Rg8 {[%emt 0:00:15]} 0-1

[Event "Turkish Club Cup 2019"]
[Site "Konya"]
[Date "2019.07.19"]
[Round "6"]
[White "Caputcuoglu, Zeki Berke"]
[Black "Acar, Ilhami"]
[Result "0-1"]
[ECO "D58"]
[WhiteElo "2010"]
[BlackElo "1636"]
[Annotator "NA"]
[PlyCount "134"]
[EventDate "2019.07.16"]
[EventType "team-tourn"]
[EventCountry "TUR"]
[SourceTitle "playchess.com"]
[Source "ChessBase"]
[SourceQuality "1"]
[TimeControl "5400+30"]

1. Nf3 {[%emt 0:00:30]} d5 {[%emt 0:00:30]} 2. d4 {[%emt 0:00:30]} Nf6 {[%emt 0:00:30]} 3. c4 {[%emt 0:00:30]} e6 {[%emt 0:00:00]} 4. Nc3 {[%emt 0:00:00]} Be7 {[%emt 0:00:00]} 5. Bg5 {[%emt 0:00:00]} Nbd7 {[%emt 0:00:00]} 6. e3 $11 {[%emt 0:00:00]} h6 {[%emt 0:00:00]} 7. Bh4 {[%emt 0:00:00]} O-O {[%emt 0:00:30]} 8. Bd3 {[%emt 0:00:00]} dxc4 {[%emt 0:02:30]} 9. Bxc4 {[%emt 0:00:00]} b6 {[%emt 0:00:30]} 10. O-O {[%emt 0:00:30]} Bb7 {[%emt 0:00:00]} 11. Qe2 {[%emt 0:00:00]} Ne4 {[%emt 0:02:00]} 12. Bg3 {[%emt 0:00:00]} Nxg3 {[%emt 0:05:30]} 13. hxg3 {[%emt 0:00:30]} Nf6 {[%emt 0:02:30]} 14. Rfd1 {[%emt 0:04:30]} c6 {[%emt 0:06:30]} 15. e4 {[%emt 0:02:30]} Qc7 {[%emt 0:02:30]} 16. Rac1 {[%emt 0:04:30]} Rad8 {[%emt 0:01:30]} 17. e5 {[%emt 0:05:30]} Nh7 {[%emt 0:08:30]} 18. Bd3 {[%emt 0:11:30]} g6 {[%emt 0:09:30]} 19. Be4 {[%emt 0:18:30]} Qb8 {[%emt 0:02:30]} 20. Qc2 {[%emt 0:00:00]} Kg7 {[%emt 0:00:30]} 21. Qa4 {[%emt 0:26:00]} c5 {[%emt 0:06:30]} 22. d5 {[%emt 0:01:30]} exd5 {[%emt 0:03:30]} 23. Bxd5 {[%emt 0:03:30]} Bg5 {[%emt 0:03:30]} 24. Nxg5 {[%emt 0:01:30]} Nxg5 {[%emt 0:00:30]} 25. f4 {[%emt 0:00:30]} Bxd5 {[%emt 0:04:30]} 26. Rxd5 {[%emt 0:02:02]} Rxd5 {[%emt 0:02:30]} 27. Nxd5 {[%emt 0:00:02]} Ne6 {[%emt 0:01:30]} 28. Qe4 {[%emt 0:00:43]} Nd4 {[%emt 0:01:30]} 29. g4 {[%emt 0:01:24]} Qa8 {[%emt 0:00:30]} 30. Re1 {[%emt 0:02:08]} Rd8 {[%emt 0:01:30]} 31. Nf6 {[%emt 0:00:04]} Qxe4 {[%emt 0:00:30]} 32. Nxe4 {[%emt 0:01:41]} Ne6 {[%emt 0:02:30]} 33. g3 {[%emt 0:00:48]} Rd3 {[%emt 0:00:30]} 34. Kf2 {[%emt 0:00:01]} Nd4 {[%emt 0:01:30]} 35. Kg2 {[%emt 0:09:14]} Nc2 {[%emt 0:02:30]} 36. Re2 {[%emt 0:00:37]} Ne3+ {[%emt 0:00:30]} 37. Kf3 {[%emt 0:00:42]} Nf5+ {[%emt 0:01:30]} 38. Kg2 {[%emt 0:01:13]} Nd4 {[%emt 0:00:30]} 39. Rf2 {[%emt 0:00:45]} a5 {[%emt 0:04:30]} 40. Nd6 {[%emt 0:01:13]} a4 {[%emt 0:02:30]} 41. f5 {[%emt 0:01:27]} g5 {[%emt 0:01:30]} 42. f6+ {[%emt 0:01:23]} Kf8 {[%emt 0:02:16]} 43. Nf5 {[%emt 0:01:27]} Nxf5 {[%emt 0:03:49]} 44. gxf5 {[%emt 0:00:36]} Re3 {[%emt 0:00:31]} 45. Rd2 {[%emt 0:00:15]} Ke8 {[%emt 0:00:43]} 46. Rd5 {[%emt 0:00:09]} g4 {[%emt 0:01:33]} 47. Kf2 {[%emt 0:00:15]} Re4 {[%emt 0:00:45]} 48. Kf1 {[%emt 0:00:56]} h5 {[%emt 0:00:28]} 49. Kf2 {[%emt 0:00:28]} Rd4 {[%emt 0:07:52]} 50. Rxd4 {[%emt 0:02:22]} cxd4 {[%emt 0:00:03]} 51. Ke2 {[%emt 0:00:17]} Kd7 {[%emt 0:00:49]} 52. e6+ {[%emt 0:00:40]} fxe6 {[%emt 0:01:17]} 53. f7 {[%emt 0:00:30]} Ke7 {[%emt 0:00:30]} 54. fxe6 {[%emt 0:00:00]} b5 {[%emt 0:00:00]} 55. a3 {[%emt 0:00:00]} Kf8 {[%emt 0:00:07]} 56. Kd3 {[%emt 0:01:22]} h4 {[%emt 0:01:48]} 57. Ke4 {[%emt 0:00:41]} hxg3 {[%emt 0:02:38]} 58. Kf5 {[%emt 0:00:14]} Ke7 {[%emt 0:00:22]} 59. Kg6 {[%emt 0:00:30]} g2 {[%emt 0:00:30]} 60. Kg7 {[%emt 0:00:00]} g1=Q {[%emt 0:00:24]} 61. f8=Q+ {[%emt 0:00:00]} Kxe6 {[%emt 0:00:26]} 62. Qe8+ {[%emt 0:00:17]} Kd6 {[%emt 0:01:25]} 63. Qxb5 {[%emt 0:01:31]} Qe3 {[%emt 0:00:37]} 64. Qxa4 {[%emt 0:00:54]} Qg5+ {[%emt 0:00:40]} 65. Kf7 {[%emt 0:00:33]} Qf5+ {[%emt 0:00:52]} 66. Kg8 {[%emt 0:00:23]} Qc8+ {[%emt 0:00:00]} 67. Kg7 {[%emt 0:00:30]} Qd7+ {[%emt 0:00:00]} 0-1

[Event "Turkish Club Cup 2019"]
[Site "Konya"]
[Date "2019.07.19"]
[Round "6"]
[White "Guner, Bulent"]
[Black "Akcan, Umit"]
[Result "0-1"]
[ECO "E03"]
[WhiteElo "1979"]
[BlackElo "1960"]
[Annotator "NA"]
[PlyCount "78"]
[EventDate "2019.07.16"]
[EventType "team-tourn"]
[EventCountry "TUR"]
[SourceTitle "playchess.com"]
[Source "ChessBase"]
[SourceQuality "1"]
[TimeControl "5400+30"]

1. d4 {[%emt 0:00:30]} d5 {[%emt 0:00:30]} 2. c4 {[%emt 0:00:30]} e6 {[%emt 0:00:00]} 3. Nf3 {[%emt 0:01:30]} Nf6 {[%emt 0:00:00]} 4. g3 {[%emt 0:00:30]} dxc4 {[%emt 0:02:30]} 5. Qa4+ {[%emt 0:03:30]} Nbd7 {[%emt 0:05:30]} 6. Bg2 {[%emt 0:07:30]} a6 {[%emt 0:00:30]} 7. Qxc4 {[%emt 0:00:30]} b5 {[%emt 0:00:30]} 8. Qc2 {[%emt 0:09:30]} Bb7 {[%emt 0:00:30]} 9. O-O {[%emt 0:01:30]} c5 {[%emt 0:03:30]} 10. dxc5 {[%emt 0:08:30]} Bxc5 {[%emt 0:00:30]} 11. Bg5 {[%emt 0:05:30]} Rc8 {[%emt 0:02:30]} 12. Qb3 {[%emt 0:07:30]} O-O {[%emt 0:20:30]} 13. Nc3 {[%emt 0:02:30]} b4 {[%emt 0:07:30]} 14. Na4 {[%emt 0:08:30]} Bd5 {[%emt 0:01:30]} 15. Qd1 {[%emt 0:01:30]} Be7 {[%emt 0:01:30]} 16. b3 {[%emt 0:06:30]} h6 {[%emt 0:05:30]} 17. Bf4 {[%emt 0:03:30]} Ne4 {[%emt 0:01:30]} 18. Qd3 {[%emt 0:03:30]} Ndc5 {[%emt 0:06:30]} 19. Nxc5 {[%emt 0:01:30]} Bxc5 {[%emt 0:00:30]} 20. Be3 {[%emt 0:07:58]} Bxe3 {[%emt 0:03:30]} 21. Qxe3 {[%emt 0:00:02]} Nc3 {[%emt 0:04:30]} 22. Rfc1 {[%emt 0:04:22]} Qf6 {[%emt 0:07:30]} 23. Ne5 {[%emt 0:00:37]} Rfd8 {[%emt 0:08:34]} 24. Nd3 {[%emt 0:04:07]} a5 {[%emt 0:02:31]} 25. a3 {[%emt 0:02:50]} Qe7 {[%emt 0:06:34]} 26. axb4 {[%emt 0:00:51]} axb4 {[%emt 0:00:05]} 27. Bxd5 {[%emt 0:00:44]} Nxd5 {[%emt 0:01:15]} 28. Qd2 {[%emt 0:02:54]} Nc3 {[%emt 0:02:06]} 29. f3 {[%emt 0:02:08]} Qd6 {[%emt 0:00:41]} 30. Kf2 {[%emt 0:02:13]} Qd5 {[%emt 0:02:54]} 31. Ra7 {[%emt 0:00:58]} Qf5 {[%emt 0:01:33]} 32. Qe3 {[%emt 0:00:41]} Nd5 {[%emt 0:01:30]} 33. Rxc8 {[%emt 0:00:40]} Rxc8 {[%emt 0:00:01]} 34. Qd4 {[%emt 0:00:34]} Qh3 {[%emt 0:00:47]} 35. Ne1 {[%emt 0:00:40]} Qxh2+ {[%emt 0:00:47]} 36. Ng2 {[%emt 0:00:02]} Rc1 {[%emt 0:00:29]} 37. Ra8+ {[%emt 0:00:40]} Kh7 {[%emt 0:00:30]} 38. Qd3+ {[%emt 0:00:12]} f5 {[%emt 0:00:00]} 39. g4 {[%emt 0:01:04]} Nf4 {[%emt 0:00:46]} 0-1